Cogmind - Beta 17.1 @@@ ROGUE MODE // 2026.09.07 @ 20:58:02 Player: LandRaider Result: Destroyed by 42-A3S(R) with Subdweller Beam Cannon Performance ------------- Evolutions (0) 0 Regions Visited (2) 400 Robots Destroyed (16) 80 Value Destroyed (381) 381 Prototype IDs (3) 60 Alien Tech Used (0) 0 Bonus (5000) 5000 TOTAL SCORE: 5921 Bonus ------- Prayed to X0-1V1 5000 Cogmind --------- Core Integrity 0/250 Matter 230/300 Energy 100/100 System Corruption 0% Temperature Cool (9) Movement Core (1400) Ox27 Location -10/Subcaves Parts ------- > --- POWER (1) -------- (None) > --- PROPULSION (2) --- (None) > --- UTILITY (2) ------ Huge Storage Unit X0-1V1's Piety Tracker > --- WEAPON (2) ------- Light Assault Rifle > --- INVENTORY (25) --- Ion Engine Light Ion Engine Light Nuclear Core Light Treads Aluminum Leg Aluminum Leg Wheel Wheel Heat Sink Heat Sink Improved Heat Sink Sensor Array Seismic Detector Seismic Detector Light Armor Plating Light Armor Plating Light Armor Plating Hammer Peak State ------------ > --- POWER ------------ Light Nuclear Core > --- PROPULSION ------- Light Treads Light Treads > --- UTILITY ---------- Huge Storage Unit X0-1V1's Piety Tracker > --- WEAPON ----------- Assault Rifle Assault Rifle > --- INVENTORY -------- Ion Engine Light Ion Engine Light Nuclear Core Light Treads Aluminum Leg Aluminum Leg Wheel Wheel Heat Sink Heat Sink Improved Heat Sink Sensor Array Seismic Detector Seismic Detector Light Armor Plating Light Armor Plating Light Armor Plating Light Assault Rifle Light Assault Rifle Hammer [Rating: 23] Favorites ----------- Power Ion Engine Engine Ion Engine Power Core Light Nuclear Core Propulsion Light Treads Treads Light Treads Leg Aluminum Leg Utility Huge Storage Unit Device Seismic Detector Storage Huge Storage Unit Protection Light Armor Plating Weapon Assault Rifle Ballistic Gun Assault Rifle Build | -11 -10 -10 ------- Run | Yrd Mat Sub Slots Evolved . | . . . Power . | . . . Propulsion . | . . . Utility . | . . . Weapon . | . . . Parts Attached 16 | 8 7 1 Power 2 | 1 1 . Engine 1 | 1 . . Core 1 | . 1 . Reactor . | . . . Propulsion 4 | 2 2 . Treads 2 | . 2 . Leg 2 | 2 . . Wheel . | . . . Hover . | . . . Flight . | . . . Utility 6 | 2 3 1 Device 2 | 1 . 1 Storage 2 | 1 1 . Processor . | . . . Hackware . | . . . Protection 2 | . 2 . Artifact . | . . . Weapon 4 | 3 1 . Energy Gun . | . . . Energy Cannon . | . . . Ballistic Gun 4 | 3 1 . Ballistic Cannon . | . . . Launcher . | . . . Special Weapon . | . . . Impact Weapon . | . . . Slashing Weapon . | . . . Piercing Weapon . | . . . Special Melee Weapon . | . . . Unidentified Prototypes 1 | . . 1 Parts Lost 7 | . 1 6 Power 1 | . . 1 Propulsion 2 | . . 2 Utility 1 | . 1 . Weapon 3 | . . 3 Highest Loss Streak 6 | . 1 6 To Critical Strikes . | . . . Average Backups 12 | 4 13 19 Power 2 | . 2 3 Propulsion 4 | 3 4 5 Utility 4 | . 4 9 Weapon 2 | . 2 2 Tool/Special . | . . . Unused Backups 13 | . . 13 Power 2 | . . 2 Propulsion 3 | . . 3 Utility 7 | . . 7 Weapon 1 | . . 1 Tool/Special . | . . . Average Slot Usage (%) 94 | . 96 68 Engine 8 | . 9 . Core 4 | . 4 4 Treads 21 | . 21 16 Leg 6 | . 6 . Device 1 | . . 14 Storage 14 | . 14 14 Protection 8 | . 9 . Ballistic Gun 27 | . 28 18 Peak Build Rating 23 | 7 12 23 Average Rating 8 | 4 8 19 On Entrance 6 | . 7 12 Avg Prop Armor Cover (%) . | . . . Naked Turns . | . . . Heaviest Build 92 | 14 92 90 Greatest Support 40 | 20 40 40 Greatest Overweight (x) 4 | 4 4 2 Average Overweight (x) 1 | . 1 2 Largest Inventory Capacity 25 | 8 25 25 Average Capacity 20 | 7 21 25 Most Carried 20 | 7 20 20 Average Carried 12 | 4 13 19 Final Capacity 25 | 8 25 25 Final Carried 20 | 6 20 18 Class Distribution -------------------- 100% | Mutant Dominant Class ---------------- Mutant | -10/Materials Mutant | -10/Subcaves Resources | -11 -10 -10 ----------- Run | Yrd Mat Sub Matter Collected 536 | 300 236 . Remotely . | . . . Salvage Created 598 | 84 465 49 Parts 40 | 9 29 2 Haulers Intercepted 1 | . 1 . Recyclers Shooed . | . . . Parts Field Recycled . | . . . Retrieved Matter . | . . . Parts Self-Destructed . | . . . Prevented . | . . . Parts Restored . | . . . Kills | -11 -10 -10 ------- Run | Yrd Mat Sub Combat Hostiles Destroyed 11 | . 10 1 Guns 11 | . 10 1 Classes Destroyed 7 | 2 4 1 Worker 1 | . 1 . Tunneler 2 | 2 . . Hauler 1 | . 1 . Recycler 1 | 1 . . Swarmer 2 | . 2 . Grunt 8 | . 8 . Subdweller 1 | . . 1 Best Kill Streak 3 | 3 3 1 Combat Bots Only 3 | . 3 1 Max Kills in Single Turn 1 | 1 1 1 Gunslinging . | . . . Exploded . | . . . Melee . | . . . Uniques/NPCs Destroyed . | . . . Combat | -11 -10 -10 -------- Run | Yrd Mat Sub Hostile Shots Fired 91 | . 55 36 Missed 25 | . 15 10 Hits 66 | . 40 26 Projectile 66 | . 40 26 Critical Strikes 1 | . 1 . Damage Taken 1080 | . 429 651 Core 265 | . 59 206 Absorbed by Shields . | . . . Core Remaining (%) 100 | 100 . . Volleys Fired 60 | 5 36 19 Largest 2 | 2 2 2 Hottest 40 | 40 40 40 Shots Fired 106 | 10 72 24 Gun 106 | 10 72 24 Cannon . | . . . Launcher . | . . . Special . | . . . Kinetic 106 | 10 72 24 Thermal . | . . . Explosive . | . . . Electromagnetic . | . . . Robot Hit Streak 15 | 4 9 15 Robot Miss Streak 3 | 2 3 1 Penetration Max . | . . . Secondary Targets . | . . . Shots Hit Robots 71 | 6 42 23 Core Hits 31 | 4 23 4 Critical Kills . | . . . Critical Parts Destroyed . | . . . Critical Strikes . | . . . Melee Attacks . | . . . Impact . | . . . Slashing . | . . . Piercing . | . . . Sneak Attacks . | . . . Combat Hostiles . | . . . Follow-up Attacks . | . . . Damage Inflicted 850 | 69 515 266 Guns 850 | 69 515 266 Cannons . | . . . Explosions . | . . . Melee . | . . . Ramming . | . . . Kinetic 850 | 69 515 266 Thermal . | . . . Explosive . | . . . Electromagnetic . | . . . Impact . | . . . Slashing . | . . . Piercing . | . . . Highest Corruption . | . . . Average Corruption . | . . . Corruption Purged . | . . . Corruption Blocked . | . . . Overload Shots . | . . . Overflow Damage . | . . . Projectiles . | . . . Explosions . | . . . Melee . | . . . Knockbacks . | . . . Impact . | . . . Kinetic . | . . . Secondary . | . . . Self-Inflicted Damage . | . . . Shots . | . . . Rammed . | . . . Targets Rammed . | . . . Kicked . | . . . Crushed . | . . . Highest Temperature 25 | . 25 . Average Temperature 8 | . 8 . Received Heat Transfer 414 | . 204 210 Siege Activations . | . . . Martial Activations . | . . . Shielding Activations . | . . . Robots Disrupted . | . . . Combat Hostiles . | . . . Robots Corrupted . | . . . Combat Hostiles . | . . . Parts Fried . | . . . Impact Corruptions . | . . . Robots Melted . | . . . Combat Hostiles . | . . . Parts Melted . | . . . Heat Transferred . | . . . Parts Sabotaged . | . . . Parts Stolen . | . . . Parts Stripped . | . . . Power Chain Reactions . | . . . Alert | -11 -10 -10 ------- Run | Yrd Mat Sub Maximum Alert Level . | . . . Low Security (%) 100 | 100 100 . Level 1 . | . . . Level 2 . | . . . Level 3 . | . . . Level 4 . | . . . Level 5 . | . . . High Security . | . . . Max Security . | . . . Peak Influence 118 | 10 118 . Initial . | . . . Average 47 | 2 52 . Influence Increases 356 | 15 341 . Destroy 0b10 Robot/C 200 | . 200 . Destroy 0b10 Robot/NC 25 | 15 10 . Destroy Leader 42 | . 42 . Successful Hack 14 | . 14 . Select Force Hacks 30 | . 30 . Lose Combat Pursuer 45 | . 45 . Influence Decreases 356 | 15 327 14 Entered New Map 7 | . . 7 Time Decay 332 | 15 317 . Lost Part 17 | . 10 7 Squads Dispatched 2 | . 2 . Investigation 1 | . 1 . Extermination . | . . . Reinforcement 1 | . 1 . Assault . | . . . Garrison . | . . . Intercept . | . . . Searches Triggered . | . . . Construction Impeded . | . . . Haulers Reinforced . | . . . Active Scanning Responses . | . . . Cargo Convoy Interrupts . | . . . Stealth | -11 -10 -10 --------- Run | Yrd Mat Sub Distress Signals . | . . . Communications Jammed . | . . . Distress Signals . | . . . Times Spotted 15 | . 13 2 Peak Tracking Total 4 | . 4 2 Tactical Retreats 3 | . 3 . Traps | -11 -10 -10 ------- Run | Yrd Mat Sub Traps Triggered . | . . . Indirectly . | . . . Trap Hack Attempts . | . . . Triggered . | . . . Disarmed . | . . . Reprogrammed . | . . . Reused . | . . . Traps Extracted . | . . . Installed . | . . . Triggered . | . . . Machines | -11 -10 -10 ---------- Run | Yrd Mat Sub Machines Disabled . | . . . Max in Single Turn . | . . . Machines Repaired . | . . . Machines Dismantled . | . . . Machines Sabotaged . | . . . Overloaded Fab Kills . | . . . Hacking | -11 -10 -10 --------- Run | Yrd Mat Sub Machines Accessed 4 | . 4 . Terminals 3 | . 3 . Fabricators . | . . . Repair Stations . | . . . Recycling Units 1 | . 1 . Scanalyzers . | . . . Garrison Access . | . . . Total Hacks 18 | . 18 . Successful 14 | . 14 . Failed 4 | . 4 . Catastrophic . | . . . Database Lockouts . | . . . Manual 7 | . 7 . Terminals 16 | . 16 . Fabricators . | . . . Repair Stations . | . . . Recycling Units 2 | . 2 . Scanalyzers . | . . . Garrison Access . | . . . Terminal Hacks 9 | . 9 . Record 6 | . 6 . Prototype ID Bank 1 | . 1 . Dispatch Records 1 | . 1 . Hauler Manifests 1 | . 1 . Fabricator Hacks . | . . . Repair Station Hacks . | . . . Recycling Unit Hacks 1 | . 1 . Retrieve Components 1 | . 1 . Scanalyzer . | . . . Garrison Access Hacks . | . . . Unauthorized Hacks 4 | . 4 . Terminals 3 | . 3 . Botnet 3 | . 3 . Fabricators . | . . . Repair Stations . | . . . Recycling Units 1 | . 1 . Tunnel 1 | . 1 . Scanalyzers . | . . . Garrison Access . | . . . Data Cores Recovered . | . . . Used . | . . . Hacking Detections 2 | . 2 . Full Trace Events . | . . . Feedback Events . | . . . Feedback Blocked . | . . . Robot Schematics Acquired . | . . . Robots Built . | . . . Authchips . | . . . Time . | . . . Total Robot Build Rating . | . . . Part Schematics Acquired . | . . . Parts Built . | . . . Authchips . | . . . Time . | . . . Total Part Build Rating . | . . . Part Studies Acquired . | . . . Parts Repaired . | . . . Time . | . . . Parts Recycled . | . . . Recycled Matter . | . . . Retrieved Matter . | . . . Retrieved Components 9 | . 9 . Parts Scanalyzed . | . . . Part Schematics Acquired . | . . . Parts Damaged . | . . . Bothacking | -11 -10 -10 ------------ Run | Yrd Mat Sub Used RIF Installer . | . . . Robots Hacked . | . . . Non-combat . | . . . Combat . | . . . Robot Hacks Applied . | . . . Relay Couplers Released . | . . . Fabnet Peak Effective % . | . . . Robots Rewired . | . . . Allies Hacked . | . . . Hacks Repelled . | . . . Allies | -11 -10 -10 -------- Run | Yrd Mat Sub Total Allies . | . . . Largest Group . | . . . Highest-Rated Group . | . . . Highest-Rated Ally . | . . . Total Orders . | . . . Ally Attacks . | . . . Total Damage . | . . . Kills . | . . . Allies Corrupted . | . . . Allies Melted . | . . . X0-1V1 Amusement Gains 9 | . 9 . Average Entertainment 4 | . 9 4 Good Acts 2 | . . 2 Intel | -11 -10 -10 ------- Run | Yrd Mat Sub Active Infowar (turns) 68 | 19 49 . Seismic 68 | 19 49 . Robot Analysis Total . | . . . Derelict Logs Recovered . | . . . Drone Launches . | . . . Drone Recoveries . | . . . Exploration | -11 -10 -10 ------------- Run | Yrd Mat Sub Turns Passed 915 | 89 771 55 Spaces Moved 290 | 42 245 3 Core 15 | 15 . . Treads 165 | . 162 3 Legs 110 | 27 83 . Wheels . | . . . Hover . | . . . Flight . | . . . Fastest Speed 50 | 50 120 320 Average Speed 238 | 137 254 320 Slowest Speed 400 | 250 400 320 Overloaded Moves . | . . . Propulsion Burnouts . | . . . Robots Hopped . | . . . Potential Cave-ins . | . . . Cave-ins Triggered . | . . . Exploration Rate (%) 10 | 4 25 2 Regions Visited 2 Branch Regions 1 Pre-discovered Areas 1 | . 1 . Known Exits Taken . | . . . Unknown Exits Taken 2 | 1 1 . Scrap Searched . | . . . Spaces Dug . | . . . Terrain Destroyed . | . . . Melee . | . . . Projectile . | . . . AOE . | . . . Terrain Rammed . | . . . Walls Destroyed . | . . . Machines Disabled . | . . . Actions | -11 -10 -10 --------- Run | Yrd Mat Sub Total 411 | 60 326 25 Wait 23 | . 23 . Move 288 | 41 244 3 Hop . | . . . Pick Up 18 | 6 12 . Fast Attach 7 | 6 1 . Attach 5 | 1 2 2 Detach 2 | . 2 . Swap 7 | 1 5 1 Drop 1 | . 1 . Fire 60 | 5 36 19 Melee . | . . . Ram . | . . . Kick . | . . . Crush . | . . . Escape Stasis . | . . . Rewire . | . . . Trap . | . . . Miscellaneous . | . . . Route ------- -11/Scrapyard -10/Materials -10/Subcaves (discovered 1 exit: Mat) History --------- Turn | Location | Event 8 | -11/Scrapyard | Discovered new exit (range 15) 90 | -11/Scrapyard | Entered Materials 189 | -10/Materials | Discovered new exit (range 7) 308 | -10/Materials | Build established: Mutant 850 | -10/Materials | Prayed at D.C.S.S. Altar Unit 861 | -10/Materials | Entered Subcaves 862 | -10/Subcaves | Approached by a straggling Scientist 862 | -10/Subcaves | Identified exit to Materials 862 | -10/Subcaves | X0-1V1 revealed exit location to -8/Materials 871 | -10/Subcaves | Ambushed by Subdwellers from Twisted Machinery 890 | -10/Subcaves | Core integrity fell below 50% 911 | -10/Subcaves | Core integrity fell below 20% 916 | -10/Subcaves | Destroyed by 42-A3S(R) with Subdweller Beam Cannon Last Messages --------------- never make it past all the Subs lurking out here." 00862_ X0-1V1: "I guarantee there's even more fun over that way." 00862_ EXIT=REVEALED: MATERIALS 00865_ VH-5II(c): "Hey, let me tag along and I can get us both out of this nasty situation. At least I think I can... The group I got separated from was talking about a shortcut back to the UFD." 00871_ 42-A3S(R) emerges from the Twisted Machinery. 00873_ Lgt. Nuclear Core destroyed. 00879_ Assault Rifle destroyed. 00883_ Your Lgt. Treads, Huge Storage Unit briefly glow, restoring some integrity. 00886_ Lgt. Treads destroyed. 00901_ PZ-82P(R) destroyed. 00902_ 42-A3S(R) affixes Scrap Shield Fragment to Scrap Shield. 00903_ Lgt. Assault Rifle destroyed. 00907_ 42-A3S(R) affixes Scrap Shield Fragment to Scrap Shield. 00908_ Assault Rifle destroyed. VH-5II(c): "I think it's somewhere northwest of here" 00912_ Subatomizers dissect the Sub. Power Source. 00916_ X0-1V1 guffaws! Map ----- +----------------------------------------------------+ | ?????????????????????????????????????????????????? | | ?????????????????????????????????????????????????? | | ?????????????????????????????????????????????????? | | ?????????????????????????????????????????????????? | | ?????????????????????????????????????????????????? | | ?????????????????????????????????????????????????? | | ?????????????????????????????????????????????????? | | ?????????????????????????????????????????????????? | | ?????????????????????????????????????????????????? | | ?????????????????????????????????????????????????? | | ?????????????????????????????????????????????????? | | ?????????????????????????????????????????????????? | | ?????????????????????????????????????????????????? | | ?????????????????????????????????????????????????? | | ?????????????????????????????????????????????????? | | ?????????????????????????????????????????????????? | | ?????????????????????????????????????????????????? | | ?????????????????????????????##????????# ???????? | | ???????????????????????????## ###??? #???????? | | ??????????????????????????## ### ##??????? | | ????????????????????###???# ???????? | | ??????????????#????## #??# #???????????? | | ??????????????# ## #?#c ## ?????????? | | ??????????????# ## #??????? | | ????????????????# #??????? | | ????????????????# @ ;# ### #??????? | | ???????????????# # ### #???? ##??????? | | ?????????????????## ####!R*#?? ??????##???????? | | ???????????????????????##% #?? ??????????????? | | ????????????????????????#""#??? ###?????????????? | | ????????????????????????" #??? ##???????????????? | | ????????????????????????" "??? #????????????????? | | ????????????????????????""""????#????????????????? | | ???????????????????????? "" ?????????????????????? | | ???????????????????????? "" ?????????????????????? | | ????????????????????????#?? ?????????????????????? | | ?????????????????????????????????????????????????? | | ?????????????????????????????????????????????????? | | ?????????????????????????????????????????????????? | | ?????????????????????????????????????????????????? | | ?????????????????????????????????????????????????? | | ?????????????????????????????????????????????????? | | ?????????????????????????????????????????????????? | | ?????????????????????????????????????????????????? | | ?????????????????????????????????????????????????? | | ?????????????????????????????????????????????????? | | ?????????????????????????????????????????????????? | | ?????????????????????????????????????????????????? | | ?????????????????????????????????????????????????? | | ?????????????????????????????????????????????????? | +----------------------------------------------------+ Best States ------------- Heat Dissipation 25 Energy Generation 14 Energy Capacity 250 Matter Stores 300 Matter Capacity 300 Sight Range 16 Terrain Scan Density 10 Armor Coverage 150 Evasion (%) 55 Recoil Reduction 2 Item Schematics ----------------- None Robot Schematics ------------------ None Fabricated ------------ Nothing Repaired ---------- Nothing Studied --------- None Alien Tech Used ----------------- None Achievements -------------- None Challenges ------------ None Game ------ Seed AntimissilePrecisionBlaster Manual? 0 Play Time 00:11:01 Cumulative 152.4 hours Start 2026.09.07 @ 19:42:55 End 2026.09.07 @ 20:58:02 Sessions 1 Manual Loads 0 Difficulty Rogue Special Mode None Game No. 134 Rogue 132 Adventurer 2 Explorer 0 Win Type - Total 0 Types 0/0/0/0/0/0/0/0/0/0 Lore% 60 Gallery% 52 Achievement% 44 Wizard Run 0 Options --------- Layout 0 ASCII 0 Keyboard 0 Movement Mouse Keybinds 0 Fullscreen 2 Font 24/Smallcaps Map View 76x50 Zoom Use 0% Tactical HUD 1 Map Filters NONE Filters NONE Steam 1 RUN: 45ca752c-06ac-43a7-88d9-1e671fb42f1f